Cogmind - Beta 10.1 @@@ ROGUE MODE // 2020.10.15 @ 20:58:34 Player: CrossedViper Result: Destroyed by S-10 Pest with Light Assault Rifle Performance ------------- Evolutions (0) 0 Regions Visited (4) 800 Robots Destroyed (27) 135 Value Destroyed (436) 436 Prototype IDs (23) 460 Alien Tech Used (0) 0 Bonus (-39) -39 TOTAL SCORE: 1792 Bonus ------- High Alert Combat Kills 8 Aligned with FarCom 300 Friendly Fire -347 Cogmind --------- Core Integrity 0/250 Matter 300/300 Energy 100/100 System Corruption 0% Temperature Cool (0) Movement Walking (120) Location -9/Mines Parts ------- > --- POWER (1) -------- (None) > --- PROPULSION (2) --- Aluminum Leg Aluminum Leg > --- UTILITY (2) ------ (None) > --- WEAPON (2) ------- Guided Plasma Cannon Enhanced Flamer > --- INVENTORY (4) ---- Superbattery (2000) AWS/Autocannon Peak State ------------ > --- POWER ------------ Light Angular Momentum Engine > --- PROPULSION ------- Aluminum Leg Aluminum Leg > --- UTILITY ---------- Small Storage Unit Superbattery > --- WEAPON ----------- Guided Plasma Cannon Light Cannon > --- INVENTORY -------- Light Treads Beamcaster Light Cannon Light Cannon Light Cannon Grenade Launcher [Rating: 28] Favorites ----------- Power Light Angular Momentum Engine Engine Light Angular Momentum Engine Propulsion Aluminum Leg Leg Aluminum Leg Utility Small Storage Unit Storage Small Storage Unit Weapon Light Cannon Energy Cannon Guided Plasma Cannon Ballistic Gun Light Assault Rifle Ballistic Cannon Light Cannon Launcher Grenade Launcher Special Weapon Enhanced Flamer Build | -11 -10 -10 -10 -9 ------- Run | Scr Mat Min Exi Min Slots Evolved . | . . . . . Power . | . . . . . Propulsion . | . . . . . Utility . | . . . . . Weapon . | . . . . . Parts Attached 16 | . 5 1 5 5 Power 2 | . 1 1 . . Engine 2 | . 1 1 . . Core . | . . . . . Reactor . | . . . . . Propulsion 3 | . 1 . . 2 Treads . | . . . . . Leg 3 | . 1 . . 2 Wheel . | . . . . . Hover . | . . . . . Flight . | . . . . . Utility 3 | . . . 3 . Device . | . . . . . Storage 3 | . . . 3 . Processor . | . . . . . Hackware . | . . . . . Protection . | . . . . . Artifact . | . . . . . Weapon 8 | . 3 . 2 3 Energy Gun . | . . . . . Energy Cannon 2 | . . . 1 1 Ballistic Gun 1 | . 1 . . . Ballistic Cannon 3 | . 2 . 1 . Launcher 1 | . . . . 1 Special Weapon 1 | . . . . 1 Impact Weapon . | . . . . . Slashing Weapon . | . . . . . Piercing Weapon . | . . . . . Special Melee Weapon . | . . . . . Unidentified Prototypes . | . . . . . Parts Lost 4 | . . . . 4 Power . | . . . . . Propulsion 2 | . . . . 2 Utility . | . . . . . Weapon 2 | . . . . 2 Highest Loss Streak 4 | . . . . 4 Average Slot Usage (%) 72 | . 84 85 86 45 Engine 10 | . 14 14 14 3 Leg 24 | . 28 28 28 16 Storage 13 | . 14 14 15 11 Energy Cannon 4 | . . . 9 4 Ballistic Gun 4 | . 17 . . . Ballistic Cannon 12 | . 10 28 18 3 Naked Turns 29 | . . . . 29 Heaviest Build 38 | 9 15 19 38 38 Greatest Support 20 | 20 20 20 20 20 Greatest Overweight (x) 10 | . . . 1 10 Average Overweight (x) . | . . . . . Largest Inventory Capacity 12 | . 6 6 12 12 Average Capacity 6 | . 6 6 6 7 Most Carried 7 | . 6 6 7 6 Average Carried 5 | . 5 6 6 4 Final Capacity 12 | 6 6 6 12 4 Final Carried 6 | 6 6 6 6 4 Class Distribution -------------------- 100% | Mutant Dominant Class ---------------- Mutant | -10/Materials Mutant | -10/Mines Mutant | -10/Exiles Mutant | -9/Mines Resources | -11 -10 -10 -10 -9 ----------- Run | Scr Mat Min Exi Min Matter Collected 728 | 200 180 122 . 226 Remotely . | . . . . . Salvage Created 499 | . 306 113 . 80 Parts 37 | . 22 11 . 4 Haulers Intercepted . | . . . . . Recyclers Shooed . | . . . . . Parts Field Recycled . | . . . . . Retrieved Matter . | . . . . . Parts Self-Destructed . | . . . . . Prevented . | . . . . . Kills | -11 -10 -10 -10 -9 ------- Run | Scr Mat Min Exi Min Combat Hostiles Destroyed 23 | . 12 5 . 6 Guns 7 | . 7 . . . Cannons 12 | . 5 5 . 2 AOE 4 | . . . . 4 Classes Destroyed 5 | . 3 . . 2 Worker 2 | . 1 1 . . Swarmer 9 | . 6 3 . . Grunt 9 | . 6 2 . 1 Brawler 1 | . . . . 1 Assembled 5 | . . . . 5 Thug 1 | . . 1 . . Best Kill Streak 5 | . 3 3 . 5 Combat Bots Only 5 | . 3 3 . 5 Max Kills in Single Turn 1 | . 1 1 . 1 Gunslinging . | . . . . . Exploded 1 | . . . . 1 Melee . | . . . . . Uniques/NPCs Destroyed . | . . . . . Combat | -11 -10 -10 -10 -9 -------- Run | Scr Mat Min Exi Min Damage Taken 1212 | . 237 192 . 783 Core 250 | . 35 42 . 173 Absorbed by Shields . | . . . . . Core Remaining (%) 100 | 100 . . . . Volleys Fired 73 | . 32 23 . 18 Largest 2 | . 2 2 . 1 Hottest 120 | . 70 70 . 120 Shots Fired 128 | . 64 46 . 18 Gun 42 | . 42 . . . Cannon 81 | . 22 46 . 13 Launcher 5 | . . . . 5 Special . | . . . . . Kinetic 116 | . 64 46 . 6 Thermal 7 | . . . . 7 Explosive 5 | . . . . 5 Electromagnetic . | . . . . . Robot Hit Streak 17 | . 17 7 . 2 Robot Miss Streak 4 | . 3 4 . 3 Penetration Max . | . . . . . Secondary Targets . | . . . . . Shots Hit Robots 66 | . 37 26 . 3 Core Hits 39 | . 18 9 . 12 Critical Hits . | . . . . . Critical Kills . | . . . . . Critical Parts Destroyed . | . . . . . Melee Attacks . | . . . . . Impact . | . . . . . Slashing . | . . . . . Piercing . | . . . . . Sneak Attacks . | . . . . . Combat Hostiles . | . . . . . Follow-up Attacks . | . . . . . Damage Inflicted 1544 | . 351 548 . 645 Guns 167 | . 167 . . . Cannons 1052 | . 184 548 . 320 Explosions 325 | . . . . 325 Melee . | . . . . . Ramming . | . . . . . Kinetic 966 | . 351 548 . 67 Thermal 253 | . . . . 253 Explosive 325 | . . . . 325 Electromagnetic . | . . . . . Impact . | . . . . . Slashing . | . . . . . Piercing . | . . . . . Highest Corruption . | . . . . . Average Corruption . | . . . . . Corruption Purged . | . . . . . Overload Shots . | . . . . . Overflow Damage 47 | . . . . 47 Projectiles . | . . . . . Explosions 47 | . . . . 47 Melee . | . . . . . Knockbacks 15 | . . 15 . . Impact . | . . . . . Kinetic 14 | . . 14 . . Secondary 1 | . . 1 . . Self-Inflicted Damage 58 | . . . . 58 Shots 3 | . . . . 3 Rammed . | . . . . . Targets Rammed . | . . . . . Kicked . | . . . . . Crushed . | . . . . . Highest Temperature 420 | . 63 120 . 420 Average Temperature 92 | . 23 41 . 219 Received Heat Transfer 129 | . 60 51 . 18 Effects 1 | . . . . 1 Shutdowns 1 | . . . . 1 Siege Activations . | . . . . . Robots Corrupted . | . . . . . Combat Hostiles . | . . . . . Parts Fried . | . . . . . Impact Corruptions . | . . . . . Robots Melted . | . . . . . Combat Hostiles . | . . . . . Parts Melted . | . . . . . Heat Transferred 560 | . . . . 560 Parts Sabotaged . | . . . . . Parts Stolen . | . . . . . Parts Stripped . | . . . . . Power Chain Reactions . | . . . . . Missiles Intercepted . | . . . . . Alert | -11 -10 -10 -10 -9 ------- Run | Scr Mat Min Exi Min Peak Influence 415 | . 415 223 . 30 Initial 83 | . . 83 . . Average 98 | . 188 149 . 3 Maximum Alert Level 2 | . 2 1 . . Low Security (%) 83 | . 59 88 . 100 Level 1 11 | . 25 11 . . Level 2 5 | . 15 . . . Level 3 . | . . . . . Level 4 . | . . . . . Level 5 . | . . . . . High Security . | . . . . . Max Security . | . . . . . Squads Dispatched 2 | . 2 . . . Investigation 2 | . 2 . . . Extermination . | . . . . . Reinforcement . | . . . . . Assault . | . . . . . Garrison . | . . . . . Intercept . | . . . . . Construction Impeded . | . . . . . Haulers Reinforced . | . . . . . Stealth | -11 -10 -10 -10 -9 --------- Run | Scr Mat Min Exi Min Distress Signals 3 | . 3 . . . Communications Jammed . | . . . . . Distress Signals . | . . . . . Times Spotted 48 | . 22 8 . 18 Peak Tracking Total 7 | . 5 3 . 7 Tactical Retreats 8 | . 3 1 . 4 Traps | -11 -10 -10 -10 -9 ------- Run | Scr Mat Min Exi Min Traps Triggered . | . . . . . Indirectly . | . . . . . Trap Hack Attempts . | . . . . . Triggered . | . . . . . Disarmed . | . . . . . Reprogrammed . | . . . . . Reused . | . . . . . Traps Extracted . | . . . . . Installed . | . . . . . Triggered . | . . . . . Machines | -11 -10 -10 -10 -9 ---------- Run | Scr Mat Min Exi Min Machines Disabled 1 | . 1 . . . Max in Single Turn 1 | . 1 . . . Machines Sabotaged . | . . . . . Garrisons Compromised . | . . . . . Overloaded Fab Kills . | . . . . . Fab Network Shutdowns . | . . . . . Hacking | -11 -10 -10 -10 -9 --------- Run | Scr Mat Min Exi Min Machines Accessed 7 | . 5 . 2 . Terminals 3 | . 3 . . . Fabricators . | . . . . . Repair Stations . | . . . . . Recycling Units 2 | . 2 . . . Scanalyzers . | . . . . . Garrison Access . | . . . . . Total Hacks 11 | . 9 . 2 . Successful 5 | . 3 . 2 . Failed 6 | . 6 . . . Catastrophic . | . . . . . Database Lockouts . | . . . . . Manual 10 | . 9 . 1 . Terminals 7 | . 7 . . . Fabricators . | . . . . . Repair Stations . | . . . . . Recycling Units 2 | . 2 . . . Scanalyzers . | . . . . . Garrison Access . | . . . . . Terminal Hacks 3 | . 1 . 2 . Record 1 | . . . 1 . Branch Access Points 1 | . 1 . . . EX-Prototype ID Bank 1 | . . . 1 . Fabricator Hacks . | . . . . . Repair Station Hacks . | . . . . . Recycling Unit Hacks . | . . . . . Scanalyzer . | . . . . . Garrison Access Hacks . | . . . . . Unauthorized Hacks 2 | . 2 . . . Terminals . | . . . . . Fabricators . | . . . . . Repair Stations . | . . . . . Recycling Units 2 | . 2 . . . Tunnel 2 | . 2 . . . Scanalyzers . | . . . . . Garrison Access . | . . . . . Data Cores Recovered . | . . . . . Used . | . . . . . Hacking Detections 3 | . 3 . . . Full Trace Events 1 | . 1 . . . Feedback Events . | . . . . . Feedback Blocked . | . . . . . Robot Schematics Acquired . | . . . . . Robots Built . | . . . . . Matter . | . . . . . Time . | . . . . . Total Robot Build Rating . | . . . . . Part Schematics Acquired . | . . . . . Parts Built . | . . . . . Matter . | . . . . . Time . | . . . . . Total Part Build Rating . | . . . . . Parts Repaired . | . . . . . Time . | . . . . . Parts Recycled . | . . . . . Recycled Matter . | . . . . . Retrieved Matter . | . . . . . Retrieved Components . | . . . . . Parts Scanalyzed . | . . . . . Part Schematics Acquired . | . . . . . Parts Damaged . | . . . . . Bothacking | -11 -10 -10 -10 -9 ------------ Run | Scr Mat Min Exi Min Used RIF Installer . | . . . . . Robots Hacked . | . . . . . Non-combat . | . . . . . Combat . | . . . . . Robot Hacks Applied . | . . . . . Relay Couplers Released . | . . . . . Robots Rewired . | . . . . . Allies Hacked . | . . . . . Hacks Repelled . | . . . . . Allies | -11 -10 -10 -10 -9 -------- Run | Scr Mat Min Exi Min Total Allies 3 | . . . . 3 Largest Group 3 | . . . . 3 Highest-Rated Group 40 | . . . . 40 Highest-Rated Ally 16 | . . . . 16 Total Orders . | . . . . . Ally Attacks 20 | . . . . 20 Total Damage 195 | . . . . 195 Kills 3 | . . . . 3 Allies Corrupted . | . . . . . Allies Melted . | . . . . . Intel | -11 -10 -10 -10 -9 ------- Run | Scr Mat Min Exi Min Robot Analysis Total . | . . . . . Derelict Logs Recovered 3 | . . 1 . 2 Drone Launches . | . . . . . Drone Recoveries . | . . . . . Exploration | -11 -10 -10 -10 -9 ------------- Run | Scr Mat Min Exi Min Turns Passed 1595 | . 420 222 436 517 Spaces Moved 1173 | 1 248 115 306 503 Core 377 | . . . . 377 Treads . | . . . . . Legs 796 | 1 248 115 306 126 Wheels . | . . . . . Hover . | . . . . . Flight . | . . . . . Fastest Speed 50 | 120 120 120 120 50 Average Speed 113 | 120 120 120 138 93 Slowest Speed 550 | 120 120 120 150 550 Overloaded Moves . | . . . . . Propulsion Burnouts . | . . . . . Robots Hopped . | . . . . . Cave-ins Triggered . | . . . . . Exploration Rate (%) 42 | 2 40 27 59 82 Regions Visited 4 Branch Regions 3 Pre-discovered Areas 4 | . 2 . 1 1 Known Exits Taken 1 | . 1 . . . Unknown Exits Taken 3 | 1 . 1 1 . Scrap Searched 1 | . . . . 1 Spaces Dug 22 | . . . . 22 Terrain Destroyed 34 | . . . . 34 Melee . | . . . . . Projectile . | . . . . . AOE 34 | . . . . 34 Terrain Rammed . | . . . . . Walls Destroyed . | . . . . . Machines Disabled . | . . . . . Actions | -11 -10 -10 -10 -9 --------- Run | Scr Mat Min Exi Min Total 1325 | . 319 153 320 533 Wait 33 | . 19 12 . 2 Move 1169 | . 247 114 305 503 Hop . | . . . . . Pick Up 9 | . 6 1 2 . Fast Attach 10 | . 2 1 3 4 Attach . | . . . . . Detach 1 | . . . 1 . Swap 6 | . 3 . 2 1 Drop 24 | . 10 2 7 5 Fire 73 | . 32 23 . 18 Melee . | . . . . . Ram . | . . . . . Kick . | . . . . . Crush . | . . . . . Escape Stasis . | . . . . . Rewire . | . . . . . Trap . | . . . . . Miscellaneous . | . . . . . Route ------- -11/Scrapyard -10/Materials (discovered 2 exits: [*Mat] / *Min) -10/Mines (discovered 2 exits: [*Mat] / *Exi) -10/Exiles -9/Mines History --------- Turn | Location | Event 1 | -11/Scrapyard | Discovered new exit (range 0) 1 | -11/Scrapyard | Entered Materials 158 | -10/Materials | Identified exit to Mines 196 | -10/Materials | Discovered new exit (range 15) 314 | -10/Materials | Build established: Mutant 421 | -10/Materials | Entered Mines 430 | -10/Mines | Learned Materials emergency access door positions 437 | -10/Mines | Met a Derelict bent on vengeance 552 | -10/Mines | Discovered new exit (range 15) 638 | -10/Mines | Deemed a non-threat by the Exiles lab entrance 638 | -10/Mines | Discovered new exit (range 5) 643 | -10/Mines | Entered Exiles 673 | -10/Exiles | Met 8R-AWN 694 | -10/Exiles | Met EX-HEX 727 | -10/Exiles | Met EX-BIN 742 | -10/Exiles | Aligned with FarCom system 743 | -10/Exiles | Given EX-Vault access code 771 | -10/Exiles | Opened EX-Vault 782 | -10/Exiles | Found Gui. Plasma Cannon 788 | -10/Exiles | Found Superbattery 795 | -10/Exiles | Found AWS/Autocannon 850 | -10/Exiles | Warned to stay clear of 0b10 Research branches 896 | -10/Exiles | Learned location of Zion (-6) 967 | -10/Exiles | Discovered new exit (range 14) 1079 | -10/Exiles | Stole three prototypes: Gui. Plasma Cannon, Superbattery, AWS/Autocannon 1079 | -10/Exiles | Entered Mines 1118 | -9/Mines | Assembled infested the area 1123 | -9/Mines | Assisted by a Guerilla fighting off Assembled 1128 | -9/Mines | Assisted by bots powering up and referring to "LRC-V3" 1207 | -9/Mines | Core integrity fell below 50% 1222 | -9/Mines | Learned Materials emergency access door positions 1235 | -9/Mines | Lost 4 parts (2n2w) 1259 | -9/Mines | Learned location of 1 exit from Proximity Caves 1353 | -9/Mines | Learned location of Storage (-7) 1365 | -9/Mines | Core integrity fell below 20% 1484 | -9/Mines | A weapon hastily lodged in a ceiling crevice suddenly fell to the ground 1596 | -9/Mines | Destroyed by S-10 Pest with Light Assault Rifle Last Messages --------------- 01382_ Acquired 116 matter. 01386_ Acquired Aluminum Leg. 01392_ Acquired 15 matter. 01393_ Acquired 6 matter. 01414_ K-01 Serf collects debris. 01484_ An Enh. Flamer has been hastily shoved under some rubble with a note attached: "One is never enough." 01487_ Acquired Enh. Flamer. 01502_ Acquired 8 matter. 01504_ Acquired Gui. Plasma Cannon. 01525_ Acquired 12 matter. 01526_ K-01 Serf collects debris. 01541_ B-36 Bruiser destroyed. 01543_ K-01 Serf collects debris. 01553_ C-30 ARC bursts open, deploying its payload. 01553_ S-10 Pest unfolds itself. 01583_ S-10 Pest destroyed. 01587_ Searching scrap... 01587_ Found Terrain Scan Processor. 01587_ Found 21 Matter. Map ----- +----------------------------------------------------+ | ????????????## ### ###??????# | | ????????????## ### #####????????# | | ?????####??## #?###????????????#### | | ????## ### ##???????????????###?? | | ???## ##???????????????# ##? | | ??## #???????????????# ## | | ??# ##?????????????? # | | ??# ###???????????# ? | | ??## ##???????### ??? | | ???### #??###### #???? | | ?????## #### ## #????? | | ??????# ## #????? | | ??????# " % %% = #????? | | ??????# " " %!% %%% #?????? | | ??????# ## ## ##?????? | | ?????# ?# =%* ### ###??????? | | ?????# ### ! ##?# #????????? | | ?????## ### ##??# #????????? | | ??????### ###### ##???# #????????? | | ????????## ? #??####????# #????????? | | ?????????##? ???????#### ########## | | ????????????# #??????## ## * | | ????####????# #?????## ! |## % | | ????# ##### ####### =%*%"%"###### | | ????# ##*%/ =* ####????# | | ?????# #??# @##!##### "#??????## | | ?????# #### ## #???### ##??????## | | ?????# ! s ## #?????#####???????##* | | ?????# % s ## #??????????????????## | | ????## ######## #???????????????????# | | ????# g #?????# #??????????????????? | | ????# #??#### #??????????????????? | | ????# g#??# % #??????????????????? | | ????## #??# ####??????????????????## | | ?????## #??# ###??????????????????## | | ??????## s#??# ##????????????###### | | ??????## b#?## #????????????# ## % | | ?????## % ### #????????????# # | | ?????# ##??????????### | | ?????# ##??????????## | | ????# ###??????????## | | ????# ##?????????#### #### ## | | ????## #?????????## ##??####? | | ?????##### ##?????????# #???????? | | ?????????####??????????# ##???????? | | ???????????????????????# ######???? | | ???????????????????????## #???? | | ????????????????????????### ##### | | ??????????????????????????#### ## | | ?????????????????????????????# ## ##### | +----------------------------------------------------+ Best States ------------- Heat Dissipation 25 Energy Generation 18 Energy Capacity 2150 Matter Stores 300 Matter Capacity 300 Sight Range 16 Terrain Scan Density 10 Evasion (%) 50 Item Schematics ----------------- None Robot Schematics ------------------ None Fabricated ------------ Nothing Alien Tech Used ----------------- None Achievements -------------- None Challenges ------------ None Game ------ Seed CompositeQuantumMapper Manual? 0 Play Time 00:12:10 Cumulative 84.4 hours Start 2020.10.15 @ 20:46:04 End 2020.10.15 @ 20:58:34 Sessions 1 Manual Loads 0 Difficulty Rogue Special Mode None Game No. 85 Rogue 84 Adventurer 0 Explorer 1 Win Type - Total 0 Types 0/0/0/0/0/0/0/0/0 Lore% 50 Gallery% 78 Achievement% 59 Wizard Run 0 Options --------- ASCII 0 Keyboard 0 Movement Mouse Keybinds 0 Fullscreen 1 Font 18/SmallcapsGlow Map View 76x50 Tactical HUD 1 Map Filters NONE Filters NONE Steam 1 RUN: fef04cc7-eab4-4c97-844d-39771bbb8757